Cogmind - Beta 15 @@@ ROGUE MODE // 2025.07.30 @ 16:55:04 Player: Inverisimilidude Result: Destroyed by U2-MZX(R) with Subdweller Laser Performance ------------- Evolutions (0) 0 Regions Visited (3) 600 Robots Destroyed (26) 130 Value Destroyed (827) 827 Prototype IDs (1) 20 Alien Tech Used (0) 0 Bonus (0) 0 TOTAL SCORE: 1577 Bonus ------- None Cogmind --------- Core Integrity 0/250 Matter 37/300 Energy 200/200 System Corruption 0% Temperature Cool (6) Movement Walking (130) Location -10/Subcaves Parts ------- > --- POWER (1) -------- Subdweller Power Source > --- PROPULSION (2) --- Cargo Legs > --- UTILITY (2+2) ---- Large Storage Unit Signal Interpreter (+) Makeshift Light Armor Plating (+) > --- WEAPON (2) ------- Light Cannon Subdweller Shrapnel Launcher > --- INVENTORY (15) --- Subdweller Power Source Aluminum Leg Aluminum Leg Wheel Subdweller Monowheel Subdweller Monowheel Large Matter Pod (150) Subdweller Optics Riot Gun Scrap Shield Fragment (43) Scrap Shield Fragment (38) Peak State ------------ > --- POWER ------------ Subdweller Power Source > --- PROPULSION ------- Cargo Legs > --- UTILITY ---------- Large Storage Unit Sensor Array Signal Interpreter Makeshift Light Armor Plating > --- WEAPON ----------- Battle Rifle Subdweller Shrapnel Launcher > --- INVENTORY -------- Subdweller Power Source Aluminum Leg Aluminum Leg Wheel Subdweller Monowheel Subdweller Monowheel Large Matter Pod Subdweller Optics EM Pulse Gun Riot Gun Light Cannon Scrap Shield Fragment Scrap Shield Fragment [Rating: 31] Favorites ----------- Power Ion Engine Engine Ion Engine Propulsion Wheel Leg Aluminum Leg Wheel Wheel Utility Sensor Array Device Sensor Array Storage Large Storage Unit Processor Signal Interpreter Protection Makeshift Light Armor Plating Weapon Light Cannon Energy Gun EM Pulse Gun Ballistic Gun Battle Rifle Ballistic Cannon Light Cannon Launcher Grenade Launcher Special Weapon Mining Laser Build | -11 -10 -10 -10 ------- Run | Yrd Mat Min Sub Slots Evolved . | . . . . Power . | . . . . Propulsion . | . . . . Utility . | . . . . Weapon . | . . . . Parts Attached 27 | 7 5 2 13 Power 2 | 1 . . 1 Engine 2 | 1 . . 1 Core . | . . . . Reactor . | . . . . Propulsion 6 | 2 . . 4 Treads . | . . . . Leg 4 | . . . 4 Wheel 2 | 2 . . . Hover . | . . . . Flight . | . . . . Utility 6 | 2 1 1 2 Device 2 | 1 1 . . Storage 2 | 1 . 1 . Processor 1 | . . . 1 Hackware . | . . . . Protection 1 | . . . 1 Artifact . | . . . . Weapon 13 | 2 4 1 6 Energy Gun 4 | 2 1 . 1 Energy Cannon . | . . . . Ballistic Gun 2 | . . . 2 Ballistic Cannon 4 | . 2 . 2 Launcher 2 | . . 1 1 Special Weapon 1 | . 1 . . Impact Weapon . | . . . . Slashing Weapon . | . . . . Piercing Weapon . | . . . . Special Melee Weapon . | . . . . Unidentified Prototypes 1 | . . . 1 Parts Lost 7 | . . . 7 Power 1 | . . . 1 Propulsion 2 | . . . 2 Utility 1 | . . . 1 Weapon 3 | . . . 3 Highest Loss Streak 3 | . . . 3 To Critical Strikes 1 | . . . 1 Average Backups 10 | 2 6 8 11 Power . | . 1 1 . Propulsion 2 | 1 2 2 2 Utility 2 | . 1 2 3 Weapon 3 | . 2 3 4 Tool/Special . | . . . . Unused Backups 11 | . 2 1 8 Power 3 | . 1 . 2 Propulsion 2 | . . . 2 Utility 3 | . . 1 2 Weapon 3 | . 1 . 2 Tool/Special . | . . . . Average Slot Usage (%) 98 | . 99 100 98 Engine 13 | . 14 14 13 Leg 4 | . . . 6 Wheel 21 | . 28 28 19 Device 13 | . 13 14 13 Storage 13 | . 14 14 13 Energy Gun 8 | . 18 13 5 Ballistic Gun 2 | . . . 4 Ballistic Cannon 9 | . 7 14 8 Launcher 7 | . . . 9 Peak Build Rating 31 | 7 8 8 31 Average Rating 10 | 4 7 7 12 On Entrance 5 | . 7 8 7 Naked Turns . | . . . . Heaviest Build 40 | 14 16 31 40 Greatest Support 55 | 20 20 20 55 Greatest Overweight (x) 3 | . . 1 3 Average Overweight (x) . | . . . . Largest Inventory Capacity 15 | 8 8 15 15 Average Capacity 12 | 6 8 8 15 Most Carried 15 | 5 8 9 15 Average Carried 11 | 2 6 8 12 Final Capacity 15 | 8 8 15 15 Final Carried 11 | 5 8 9 11 Class Distribution -------------------- 91% | Mutant 8% | Derelict-Mutant Dominant Class ---------------- Mutant | -10/Materials Mutant | -10/Mines Mutant | -10/Subcaves Resources | -11 -10 -10 -10 ----------- Run | Yrd Mat Min Sub Matter Collected 975 | 217 . 280 478 Remotely . | . . . . Salvage Created 642 | 20 . 120 502 Parts 34 | 2 . 7 25 Haulers Intercepted . | . . . . Recyclers Shooed . | . . . . Parts Field Recycled . | . . . . Retrieved Matter . | . . . . Parts Self-Destructed 4 | . . . 4 Prevented . | . . . . Kills | -11 -10 -10 -10 ------- Run | Yrd Mat Min Sub Combat Hostiles Destroyed 23 | . . 5 18 Guns 6 | . . 3 3 Cannons 2 | . . 1 1 AOE 15 | . . 1 14 Classes Destroyed 6 | 1 . 2 3 Tunneler 1 | 1 . . . Turret 2 | . . . 2 Swarmer 6 | . . 3 3 Grunt 3 | . . 2 1 Sentry 1 | . . . 1 Subdweller 13 | . . . 13 Best Kill Streak 4 | 1 . 3 4 Combat Bots Only 3 | . . 3 3 Max Kills in Single Turn 2 | 1 . 1 2 Gunslinging . | . . . . Exploded 2 | . . 1 2 Melee . | . . . . Uniques/NPCs Destroyed . | . . . . Combat | -11 -10 -10 -10 -------- Run | Yrd Mat Min Sub Hostile Shots Fired 137 | . 1 13 123 Missed 41 | . . 1 40 Hits 96 | . 1 12 83 Projectile 96 | . 1 12 83 Critical Strikes 3 | . . 1 2 Damage Taken 1195 | . 11 104 1080 Core 257 | . . 20 237 Absorbed by Shields . | . . . . Core Remaining (%) 100 | 100 . . . Volleys Fired 64 | 2 8 7 47 Largest 2 | 2 2 2 2 Hottest 100 | 80 100 70 80 Shots Fired 103 | 4 12 12 75 Gun 38 | 4 4 4 26 Cannon 35 | . 6 7 22 Launcher 28 | . . 1 27 Special 2 | . 2 . . Kinetic 56 | . 6 7 43 Thermal 4 | 2 2 . . Explosive 19 | . . 1 18 Electromagnetic 24 | 2 4 4 14 Robot Hit Streak 13 | 3 2 3 13 Robot Miss Streak 5 | 1 3 5 2 Penetration Max . | . . . . Secondary Targets . | . . . . Shots Hit Robots 52 | 3 2 4 43 Core Hits 43 | 1 . 7 35 Critical Kills . | . . . . Critical Parts Destroyed . | . . . . Critical Strikes 1 | . . 1 . Blast 1 | . . 1 . Melee Attacks . | . . . . Impact . | . . . . Slashing . | . . . . Piercing . | . . . . Sneak Attacks . | . . . . Combat Hostiles . | . . . . Follow-up Attacks . | . . . . Damage Inflicted 2126 | 34 31 114 1947 Guns 427 | 34 15 34 344 Cannons 253 | . 16 16 221 Explosions 1446 | . . 64 1382 Melee . | . . . . Ramming . | . . . . Kinetic 1197 | . 16 16 1165 Thermal 121 | 22 . . 99 Explosive 596 | . . 64 532 Electromagnetic 212 | 12 15 34 151 Impact . | . . . . Slashing . | . . . . Piercing . | . . . . Highest Corruption . | . . . . Average Corruption . | . . . . Corruption Purged . | . . . . Corruption Blocked . | . . . . Overload Shots . | . . . . Overflow Damage 26 | . . . 26 Projectiles . | . . . . Explosions 26 | . . . 26 Melee . | . . . . Knockbacks 4 | . . . 4 Impact . | . . . . Kinetic 4 | . . . 4 Secondary . | . . . . Self-Inflicted Damage 46 | . . . 46 Shots 3 | . . . 3 Rammed . | . . . . Targets Rammed . | . . . . Kicked . | . . . . Crushed . | . . . . Highest Temperature 60 | 36 60 36 10 Average Temperature 20 | 20 20 20 10 Received Heat Transfer 303 | . 6 27 270 Siege Activations . | . . . . Martial Activations . | . . . . Shielding Activations . | . . . . Robots Disrupted . | . . . . Combat Hostiles . | . . . . Robots Corrupted . | . . . . Combat Hostiles . | . . . . Parts Fried . | . . . . Impact Corruptions . | . . . . Robots Melted . | . . . . Combat Hostiles . | . . . . Parts Melted . | . . . . Heat Transferred 150 | 50 . . 100 Parts Sabotaged . | . . . . Parts Stolen . | . . . . Parts Stripped . | . . . . Power Chain Reactions 1 | . . . 1 Alert | -11 -10 -10 -10 ------- Run | Yrd Mat Min Sub Maximum Alert Level . | . . . . Low Security (%) 100 | 100 100 100 . Level 1 . | . . . . Level 2 . | . . . . Level 3 . | . . . . Level 4 . | . . . . Level 5 . | . . . . High Security . | . . . . Max Security . | . . . . Peak Influence 75 | 5 15 75 . Initial 5 | . 3 5 . Average 18 | . 4 30 . Influence Increases 444 | 5 38 126 275 Destroy 0b10 Robot/C 240 | . . 100 140 Destroy 0b10 Robot/NC 5 | 5 . . . Destroy Leader 20 | . . 20 . Successful Hack 8 | . 8 . . Disable Machine 30 | . 30 . . Destroy Structure 6 | . . 6 . Lose Combat Pursuer 135 | . . . 135 Influence Decreases 351 | . 28 125 198 Entered New Map 21 | . 2 10 9 Time Decay 260 | . 26 115 119 Lost Part 70 | . . . 70 Squads Dispatched 1 | . 1 . . Investigation . | . . . . Extermination . | . . . . Reinforcement 1 | . 1 . . Assault . | . . . . Garrison . | . . . . Intercept . | . . . . Searches Triggered . | . . . . Construction Impeded . | . . . . Haulers Reinforced . | . . . . Active Scanning Responses . | . . . . Cargo Convoy Interrupts . | . . . . Stealth | -11 -10 -10 -10 --------- Run | Yrd Mat Min Sub Distress Signals . | . . . . Communications Jammed . | . . . . Distress Signals . | . . . . Times Spotted 41 | . 6 5 30 Peak Tracking Total 6 | . 5 2 6 Tactical Retreats 2 | . . . 2 Traps | -11 -10 -10 -10 ------- Run | Yrd Mat Min Sub Traps Triggered 1 | . . . 1 Indirectly . | . . . . Trap Hack Attempts . | . . . . Triggered . | . . . . Disarmed . | . . . . Reprogrammed . | . . . . Reused . | . . . . Traps Extracted . | . . . . Installed . | . . . . Triggered . | . . . . Machines | -11 -10 -10 -10 ---------- Run | Yrd Mat Min Sub Machines Disabled 4 | . 2 . 2 Max in Single Turn 2 | . 1 . 2 Machines Repaired . | . . . . Machines Dismantled . | . . . . Machines Sabotaged . | . . . . Overloaded Fab Kills . | . . . . Hacking | -11 -10 -10 -10 --------- Run | Yrd Mat Min Sub Machines Accessed 2 | . 1 . 1 Terminals 1 | . 1 . . Fabricators . | . . . . Repair Stations . | . . . . Recycling Units . | . . . . Scanalyzers . | . . . . Garrison Access . | . . . . Total Hacks 8 | . 4 . 4 Successful 5 | . 1 . 4 Failed 3 | . 3 . . Catastrophic 2 | . 2 . . Database Lockouts . | . . . . Manual 4 | . 4 . . Terminals 4 | . 4 . . Fabricators . | . . . . Repair Stations . | . . . . Recycling Units . | . . . . Scanalyzers . | . . . . Garrison Access . | . . . . Terminal Hacks 5 | . 1 . 4 Record 4 | . . . 4 Registered Components 1 | . 1 . . Fabricator Hacks . | . . . . Repair Station Hacks . | . . . . Recycling Unit Hacks . | . . . . Scanalyzer . | . . . . Garrison Access Hacks . | . . . . Unauthorized Hacks . | . . . . Terminals . | . . . . Fabricators . | . . . . Repair Stations . | . . . . Recycling Units . | . . . . Scanalyzers . | . . . . Garrison Access . | . . . . Data Cores Recovered . | . . . . Used . | . . . . Hacking Detections 1 | . 1 . . Full Trace Events . | . . . . Feedback Events . | . . . . Feedback Blocked . | . . . . Robot Schematics Acquired . | . . . . Robots Built . | . . . . Authchips . | . . . . Time . | . . . . Total Robot Build Rating . | . . . . Part Schematics Acquired . | . . . . Parts Built . | . . . . Authchips . | . . . . Time . | . . . . Total Part Build Rating . | . . . . Parts Repaired . | . . . . Time . | . . . . Parts Recycled . | . . . . Recycled Matter . | . . . . Retrieved Matter . | . . . . Retrieved Components . | . . . . Parts Scanalyzed . | . . . . Part Schematics Acquired . | . . . . Parts Damaged . | . . . . Bothacking | -11 -10 -10 -10 ------------ Run | Yrd Mat Min Sub Used RIF Installer . | . . . . Robots Hacked . | . . . . Non-combat . | . . . . Combat . | . . . . Robot Hacks Applied . | . . . . Relay Couplers Released . | . . . . Fabnet Peak Effective % . | . . . . Robots Rewired . | . . . . Allies Hacked . | . . . . Hacks Repelled . | . . . . Allies | -11 -10 -10 -10 -------- Run | Yrd Mat Min Sub Total Allies . | . . . . Largest Group . | . . . . Highest-Rated Group . | . . . . Highest-Rated Ally . | . . . . Total Orders . | . . . . Ally Attacks . | . . . . Total Damage . | . . . . Kills . | . . . . Allies Corrupted . | . . . . Allies Melted . | . . . . Intel | -11 -10 -10 -10 ------- Run | Yrd Mat Min Sub Active Infowar (turns) 1655 | 6 174 281 1194 Sensors 1484 | . 9 281 1194 Seismic 171 | 6 165 . . Robot Analysis Total . | . . . . Derelict Logs Recovered 1 | . . . 1 Drone Launches . | . . . . Drone Recoveries . | . . . . Exploration | -11 -10 -10 -10 ------------- Run | Yrd Mat Min Sub Turns Passed 1735 | 59 179 281 1216 Spaces Moved 1467 | 49 174 274 970 Core 6 | 6 . . . Treads . | . . . . Legs 169 | . . . 169 Wheels 1292 | 43 174 274 801 Hover . | . . . . Flight . | . . . . Fastest Speed 50 | 50 80 80 95 Average Speed 98 | 76 80 81 107 Slowest Speed 190 | 80 80 95 190 Overloaded Moves . | . . . . Propulsion Burnouts . | . . . . Robots Hopped . | . . . . Potential Cave-ins . | . . . . Cave-ins Triggered . | . . . . Exploration Rate (%) 30 | 4 28 40 51 Regions Visited 3 Branch Regions 2 Pre-discovered Areas . | . . . . Known Exits Taken . | . . . . Unknown Exits Taken 3 | 1 1 1 . Scrap Searched 14 | . . 2 12 Spaces Dug . | . . . . Terrain Destroyed 244 | . . 6 238 Melee . | . . . . Projectile 2 | . . . 2 AOE 242 | . . 6 236 Terrain Rammed . | . . . . Walls Destroyed . | . . . . Machines Disabled . | . . . . Actions | -11 -10 -10 -10 --------- Run | Yrd Mat Min Sub Total 1649 | 62 199 319 1069 Wait 37 | . . 32 5 Move 1464 | 48 173 273 970 Hop . | . . . . Pick Up 28 | 5 6 2 15 Fast Attach 13 | 7 4 . 2 Attach 10 | . 1 . 9 Detach . | . . . . Swap 15 | . . 3 12 Drop 18 | . 7 2 9 Fire 64 | 2 8 7 47 Melee . | . . . . Ram . | . . . . Kick . | . . . . Crush . | . . . . Escape Stasis . | . . . . Rewire . | . . . . Trap . | . . . . Miscellaneous . | . . . . Route ------- -11/Scrapyard -10/Materials -10/Mines -10/Subcaves (discovered 2 exits: [*Mat] / [*Rec]) History --------- Turn | Location | Event 14 | -11/Scrapyard | Discovered new exit (range 16) 60 | -11/Scrapyard | Entered Materials 147 | -10/Materials | Discovered new exit (range 12) 239 | -10/Materials | Entered Mines 270 | -10/Mines | Assembled infested the area 275 | -10/Mines | Assisted by a Guerilla fighting off Assembled 312 | -10/Mines | Build established: Mutant 396 | -10/Mines | Found a hidden stash of uninstalled traps 481 | -10/Mines | Discovered new exit (range 6) 520 | -10/Mines | Entered Subcaves 697 | -10/Subcaves | Discovered new exit (range 5) 843 | -10/Subcaves | Learned Materials non-interactive machine intel 1011 | -10/Subcaves | Disturbed a concealed Subdweller 1080 | -10/Subcaves | Ambushed by Subdwellers from Twisted Machinery 1151 | -10/Subcaves | Shifting Twisted Machinery released Sub. Shrapnel Launcher 1154 | -10/Subcaves | Shifting Twisted Machinery released Battle Rifle 1340 | -10/Subcaves | Visited Clippyterm 1343 | -10/Subcaves | Learned Factory stockpile data 1363 | -10/Subcaves | Discovered new exit (range 13) 1570 | -10/Subcaves | A Subdweller sparked back to life 1570 | -10/Subcaves | A Subdweller sparked back to life 1570 | -10/Subcaves | A Subdweller sparked back to life 1573 | -10/Subcaves | Core integrity fell below 50% 1599 | -10/Subcaves | Found Prototype Leg 1599 | -10/Subcaves | Identified Cargo Legs 1601 | -10/Subcaves | Attached Cargo Legs, gained temporary slots: Utility x2 1704 | -10/Subcaves | Ambushed by Subdwellers from Twisted Machinery 1710 | -10/Subcaves | Ambushed by Subdweller buried in earth 1733 | -10/Subcaves | Core integrity fell below 20% 1736 | -10/Subcaves | Destroyed by U2-MZX(R) with Subdweller Laser Last Messages --------------- 01604_ Acquired 45 matter. 01607_ Acquired Aluminum Leg. 01615_ Acquired Sub. Monowheel. 01622_ Acquired Sub. Power Source. 01623_ Acquired 37 matter. 01704_ VD-HN3(R) emerges from the Twisted Machinery. 01705_ Battle Rifle destroyed. 01706_ VD-HN3(R) destroyed. 01710_ WT-B15(R) destroyed. 01711_ AD-LV7(R): "GOODGOOD!" 01711_ BQ-7YB(R): "ARGHSUB!" 01712_ BQ-7YB(R) destroyed. 01714_ ZT-IET(R): "ARGHSUB!" 01714_ Sensor Array destroyed. 01715_ I5-WRW(R): "ARGHSUB!" 01726_ I5-WRW(R) knocked back. 01728_ U2-MZX(R): "HIDIE!" 01730_ EM Pulse Gun destroyed. 01734_ I5-WRW(R) destroyed. Map ----- +----------------------------------------------------+ | ?????????????????????????#" [ ### #??????????? | | ????????????????????????## ##?? ##??????????? | | ???????????????????????## ##??? ###???????????? | | ?????????????########?## #????##?????????????? | | ????????????## ### #???????????????????? | | ????# ### #???????????????????? | | ????# ## ##???????????????????? | | ???# ## ### ###????????????????????? | | ?? ??# #?# ##??????????????????????? | | ??? ???# ########????????????????????? | | ??? ?????# #### #????????????????????? | | ????## ###??????## ##???????????????????? | | ?????#????????????## ##??????????????????? | | ???????????????????## #??????????????????? | | ????????????????????## #??????????????????? | | ?????????????????????## ######????? ????????????? | | ?????????????????????# ##???????? #???????????? | | ?????????????????????# #??????? "????????????? | | ?????????????????????# ##?????? ##????????????? | | ?????????????????????# #??### ##???????????? | | ?????????????????????## ### ; ;;#???????????? | | ?????????????????????# ;# ;## ?????????? | | ?????????????????????# #; ?????????? | | ?????????????????????## ????????? | | ??????????????????????# ; ; ;" ?????????? | | ??????????????????????# @!R ;;;#????????????? | | ??????????????????????####%R ;;##???????????????? | | ????????????????????????? ## #??????????????? | | ????????????????????????? ?????????????????? | | ???????????????????????? ## ???????????????? | | ???????????????????????? ;#??##??????????????? | | ??????????????????????? #??????????????????? | | ??????????????????????? #??????????????????? | | ??????????????????????%& #??????????????????? | | ?????????????????????? ??????????????????? | | ????????????????????? ??????????????????? | | ????????????????????? |! ##?????????????????? | | ????????????????????# #??????????????????? | | ????????????????????# " #??????????????????? | | ?????????????????????? "###??????????????????? | | ???????????????????????? ""?????????????????????? | | ?????????????????????????????????????????????????? | | ?????????????????????????????????????????????????? | | ?????????????????????????????????????????????????? | | ?????????????????????????????????????????????????? | | ?????????????????????????????????????????????????? | | ?????????????????????????????????????????????????? | | ?????????????????????????????????????????????????? | | ?????????????????????????????????????????????????? | | ?????????????????????????????????????????????????? | +----------------------------------------------------+ Best States ------------- Heat Dissipation 25 Energy Generation 15 Energy Capacity 250 Matter Stores 300 Matter Capacity 300 Sight Range 16 Robot Scan Range 14 Terrain Scan Density 10 Armor Coverage 100 Evasion (%) 55 Item Schematics ----------------- None Robot Schematics ------------------ None Fabricated ------------ Nothing Repaired ---------- Nothing Alien Tech Used ----------------- None Achievements -------------- None Challenges ------------ None Game ------ Seed TitaniumTrapRefractor Manual? 0 Play Time 00:19:33 Cumulative 73.3 hours Start 2025.07.30 @ 16:17:24 End 2025.07.30 @ 16:55:04 Sessions 2 Manual Loads 0 Difficulty Rogue Special Mode None Game No. 96 Rogue 96 Adventurer 0 Explorer 0 Win Type - Total 0 Types 0/0/0/0/0/0/0/0/0/0 Lore% 51 Gallery% 38 Achievement% 38 Wizard Run 0 Options --------- Layout 1 ASCII 0 Keyboard 0 Movement Arrows Keybinds 0 Fullscreen 1 Font 24/Smallcaps Map View 50x35 Zoom Use 0% Tactical HUD 1 Map Filters NONE Filters NONE Steam 1 RUN: a6e66dd1-4149-42eb-89b9-f0a781a98537